fUSD/lending_fUSD_20251101
["ID","MTS","AMOUNT","RATE_DAILY","PERIOD"]
[392802529,1761969033217,-500.0,0.00014999,2]
[392802530,1761969033227,-500.0,0.00014999,2]
[392802531,1761969033237,-500.0,0.00014999,2]
[392802532,1761969033247,-500.0,0.00014999,2]
[392802533,1761969033256,-500.0,0.00014999,2]
[392802534,1761969033265,-500.0,0.00014999,2]
[392802535,1761969033276,-500.0,0.00014999,2]
[392802536,1761969033285,-590.63664847,0.00014999,2]
[392802537,1761969033295,-500.0,0.00014999,2]
[392802538,1761969033305,-500.0,0.00014999,2]
[392802539,1761969033315,-401.88857576,0.00014999,2]
[392802540,1761969033324,-150.0,0.00014999,2]
[392802541,1761969033333,-500.0,0.00014999,2]
[392802542,1761969033343,-500.0,0.00014999,2]
[392802543,1761969033352,-500.0,0.00014999,2]
[392802544,1761969033361,-500.0,0.00014999,2]
[392802545,1761969033371,-500.0,0.00014999,2]
[392802546,1761969033381,-500.0,0.00014999,2]
[392802547,1761969033390,-500.0,0.00014999,2]
[392802548,1761969033399,-500.0,0.00014999,2]
[392802549,1761969033408,-500.0,0.00014999,2]
[392802550,1761969033418,-500.0,0.00014999,2]
[392802551,1761969033429,-500.0,0.00014999,2]
[392802552,1761969033440,-500.0,0.00014999,2]
[392802553,1761969033450,-500.0,0.00014999,2]
[392802554,1761969033459,-500.0,0.00014999,2]
[392802555,1761969033469,-500.0,0.00014999,2]
[392802556,1761969033478,-500.0,0.00014999,2]
[392802557,1761969033487,-500.0,0.00014999,2]
[392802558,1761969033497,-500.0,0.00014999,2]
[392802559,1761969033506,-500.0,0.00014999,2]
[392802560,1761969033516,-500.0,0.00014999,2]
[392802561,1761969033525,-500.0,0.00014999,2]
[392802562,1761969033535,-454.28275613,0.00014999,2]
[392802563,1761969033544,-1000.0,0.00014999,2]
[392802564,1761969033554,-1000.0,0.00014999,2]
[392802565,1761969033563,-1000.0,0.00014999,2]
[392802566,1761969033573,-500.0,0.00014999,2]
[392802567,1761969033582,-500.0,0.00014999,2]
[392802568,1761969033592,-500.0,0.00014999,2]
[392802569,1761969033601,-500.0,0.00014999,2]
[392802570,1761969033611,-500.0,0.00014999,2]
[392802571,1761969033620,-323.08711807,0.00014999,2]
[392802572,1761969033630,-150.0,0.00014999,2]
[392802573,1761969033640,-150.0,0.00014999,2]
[392802574,1761969033650,-150.0,0.00014999,2]
[392802575,1761969033659,-150.0,0.00014999,2]
[392802576,1761969033669,-692.0,0.00014999,2]
[392802577,1761969033680,-500.0,0.00014999,2]
[392802578,1761969033690,-500.0,0.00014999,2]
[392802579,1761969033700,-500.0,0.00014999,2]
[392802580,1761969033709,-500.0,0.00014999,2]
[392802581,1761969033719,-517.43677381,0.00014999,2]
[392802582,1761969033728,-1000.0,0.00014999,2]
[392802583,1761969033738,-151.58259067,0.00014999,2]
[392802584,1761969033748,-151.56116382,0.00014999,2]
[392802585,1761969033761,-150.0,0.00014999,2]
[392802586,1761969033771,-171.34407011,0.00014999,2]
[392802587,1761969033780,-151.01427913,0.00014999,2]
[392802588,1761969033791,-150.0,0.00014999,2]
[392802589,1761969033803,-150.0,0.00014999,2]
[392802590,1761969033814,-150.65390488,0.00014999,2]
[392802591,1761969033824,-150.0,0.00014999,2]
[392802592,1761969033835,-153.09472947,0.00014999,2]
[392802593,1761969033845,-150.0,0.00014999,2]
[392802594,1761969033854,-152.56364128,0.00014999,2]
[392802595,1761969033863,-311.73,0.00014999,2]
[392802596,1761969033873,-500.0,0.00014999,2]
[392802597,1761969033883,-500.0,0.00014999,2]
[392802598,1761969033892,-500.0,0.00014999,2]
[392802599,1761969033902,-500.0,0.00014999,2]
[392802600,1761969033911,-500.3907686,0.00014999,2]
[392802601,1761969033922,-150.0,0.00014999,2]
[392802602,1761969033933,-150.0,0.00014999,2]
[392802603,1761969033942,-150.0,0.00014999,2]
[392802604,1761969033952,-150.0,0.00014999,2]
[392802605,1761969034198,-150.0,0.00014999,2]
[392802606,1761969034208,-150.0,0.00014999,2]
[392802607,1761969034219,-150.0,0.00014999,2]
[392802608,1761969034228,-204.39700933,0.00014999,2]
[392802609,1761969034237,-500.0,0.00014999,2]
[392802610,1761969034247,-671.27829358,0.00014999,2]
[392802611,1761969034257,-2879.0,0.00015,2]
[392802612,1761969034267,-131056.06783662,0.00015,2]
[392802613,1761969034280,-24092.65218464,0.00015,2]
[392802615,1761969037588,-300.0,0.00014326,2]
[392802616,1761969037598,-625.403885,0.00014776,2]
[392802617,1761969037613,-500.74715698,0.00014973,2]
[392802618,1761969037623,-19646.18469967,0.00015,2]
[392802619,1761969037851,-241.70931224,0.000149,2]
[392802620,1761969037861,-4574390.33589829,0.00015,2]
[392802623,1761969039974,-414.26840971,0.00015,2]
[392802624,1761969039993,-377.03519992,0.00015,2]
[392802639,1761969042784,-293.29439703,0.00015,2]
[392802640,1761969042938,-1937.9675059,0.00015,2]
[392802645,1761969365417,5114.01,0.00014991,7]
[392802654,1761969780745,173.14,0.00010937,2]
[392802655,1761969797285,-152.78,0.00013706,2]
[392802656,1761969797315,-35.50059285,0.00013712,2]
[392802657,1761969800409,-171.28,0.00013712,2]
[392802662,1761969858757,-269.377053,0.00013643,2]
[392802663,1761969858778,-43.21940715,0.00013712,2]
[392802664,1761969858800,-225.79174703,0.00013715,2]
[392802665,1761969860118,-74.20825297,0.00013715,2]
[392802666,1761969860140,-142.42387461,0.00013718,2]
[392802667,1761969909052,150.0,0.00013488,2]
[392802668,1761969909303,150.0,0.00013488,2]
[392802669,1761969909574,150.0,0.00013488,2]
[392802670,1761969911707,150.0,0.00013488,2]
[392802671,1761969917780,150.0,0.00013488,2]
[392802672,1761969917946,150.0,0.00013488,2]
[392802673,1761969924491,150.0,0.00013488,2]
[392802674,1761969929574,150.00000001,0.00013488,2]
[392802675,1761969930884,150.0,0.00013488,2]
[392802676,1761969930974,150.0,0.00013488,2]
[392802694,1761970231845,-252.06000247,0.0001373,2]
[392802695,1761970231897,-552.94999753,0.0001373,2]
[392802696,1761970231907,-195.0,0.00013738,2]
[392802697,1761970231917,-200.0,0.00013835,2]
[392802698,1761970231926,-1852.42,0.00013848,2]
[392802699,1761970231936,-151.0,0.00013937,2]
[392802700,1761970231945,-151.0,0.00013937,2]
[392802701,1761970231955,-157.30807833,0.00013937,2]
[392802702,1761970231964,-2353.18,0.00013945,2]
[392802703,1761970231974,-150.0,0.00013987,2]
[392802704,1761970231983,-300.0,0.00014,2]
[392802705,1761970231992,-300.0,0.00014,2]
[392802706,1761970232002,-554.9030753,0.00014001,2]
[392802707,1761970232012,-150.99,0.00014001,2]
[392802708,1761970232021,-9999.99,0.00014001,2]
[392802709,1761970232030,-197.61,0.00014001,2]
[392802710,1761970232049,-250.0,0.00014026,2]
[392802711,1761970232058,-820.0,0.00014104,2]
[392802712,1761970232067,-166.66,0.00014108,2]
[392802713,1761970232076,-150.0,0.00014143,2]
[392802714,1761970232086,-322.6107,0.00014144,2]
[392802715,1761970232095,-646.65982734,0.00014144,2]
[392802716,1761970232105,-514.84070869,0.00014144,2]
[392802717,1761970232114,-248.71531821,0.00014144,2]
[392802718,1761970232124,-500.0,0.00014144,2]
[392802719,1761970232133,-599.21490972,0.00014144,2]
[392802720,1761970232142,-187.78006525,0.00014144,2]
[392802721,1761970232152,-820.0,0.00014187,2]
[392802722,1761970232161,-820.0,0.00014191,2]
[392802723,1761970232170,-820.0,0.00014232,2]
[392802724,1761970232179,-150.0,0.00014237,2]
[392802725,1761970232188,-962.54,0.00014241,2]
[392802726,1761970232197,-714.52991534,0.00014248,2]
[392802727,1761970232209,-105.47008466,0.00014248,2]
[392802728,1761970232219,-820.0,0.00014288,2]
[392802729,1761970232228,-393.0,0.0001441,2]
[392802730,1761970232237,-218.9393136,0.00014435,2]
[392802731,1761970232246,-820.0,0.0001446,2]
[392802732,1761970232255,-150.0,0.00014487,2]
[392802733,1761970232265,-13997.63517829,0.00014504,2]
[392802735,1761970232276,-267.35,0.00014504,2]
[392802738,1761970232287,-367.44,0.00014504,2]
[392802739,1761970232307,-5367.56482171,0.00014504,2]
[392802740,1761970232316,-716.37746281,0.00014511,2]
[392802741,1761970232326,-518.0,0.00014515,2]
[392802742,1761970232335,-518.0,0.00014534,2]
[392802743,1761970232583,-177.0,0.00014552,2]
[392802744,1761970232595,-422.81957621,0.00014559,2]
[392802745,1761970232605,-518.0,0.0001456,2]
[392802746,1761970232614,-518.0,0.00014563,2]
[392802747,1761970232624,-166.66,0.00014573,2]
[392802748,1761970232636,-538.58818025,0.00014598,2]
[392802749,1761970232645,-518.0,0.00014659,2]
[392802750,1761970232655,-533.88981491,0.00014692,2]
[392802751,1761970232665,-1749.68656,0.0001485,2]
[392802752,1761970232674,-518.0,0.00014871,2]
[392802753,1761970232683,-1411.41040389,0.00014883,2]
[392802754,1761970232693,-1411.41040386,0.00014885,2]
[392802755,1761970232703,-1411.41040386,0.00014887,2]
[392802756,1761970232713,-1411.41040386,0.00014889,2]
[392802757,1761970232722,-1411.41040386,0.00014891,2]
[392802758,1761970232731,-1411.41040386,0.00014892,2]
[392802759,1761970232741,-1411.41040386,0.00014894,2]
[392802760,1761970232750,-1411.41040386,0.00014896,2]
[392802761,1761970232759,-1411.41040386,0.00014898,2]
[392802762,1761970232768,-1000.0,0.00014899,2]
[392802763,1761970232777,-17735.7195,0.000149,2]
[392802764,1761970232786,-198.89274234,0.000149,2]
[392802765,1761970232796,-242.6841,0.000149,2]
[392802766,1761970232806,-432.76920409,0.000149,2]
[392802767,1761970232815,-1411.41040386,0.000149,2]
[392802768,1761970232825,-153.42491547,0.000149,2]
[392802769,1761970232834,-246.97240412,0.000149,2]
[392802770,1761970232843,-41678.93220567,0.000149,2]
[392802771,1761970232852,-500.0,0.00014932,2]
[392802772,1761970232862,-171.53148357,0.00014949,2]
[392802773,1761970232871,-500.0,0.00014973,2]
[392802774,1761970232881,-500.0,0.00014979,2]
[392802775,1761970232890,-500.0,0.00014979,2]
[392802776,1761970232899,-190.82323287,0.00014979,2]
[392802777,1761970232910,-500.0,0.00014979,2]
[392802778,1761970232919,-237.78375784,0.00014979,2]
[392802779,1761970232929,-500.0,0.00014979,2]
[392802780,1761970232938,-500.0,0.00014979,2]
[392802781,1761970232948,-500.0,0.00014979,2]
[392802782,1761970232957,-255.47888782,0.00014979,2]
[392802783,1761970232967,-500.0,0.00014979,2]
[392802784,1761970232977,-500.0,0.00014979,2]
[392802785,1761970232986,-499.99999999,0.00014979,2]
[392802786,1761970232995,-98586.82137589,0.0001498,2]
[392802793,1761970237758,-1396.78893979,0.0001498,2]
[392802797,1761970237814,-16.38968432,0.0001498,2]
[392802798,1761970237823,-943.08,0.00014983,2]
[392802799,1761970237833,-186.72722859,0.00014983,2]
[392802800,1761970237975,-289.82277141,0.00014983,2]
[392802801,1761970237986,-476.55,0.00014983,2]
[392802802,1761970237995,-476.55,0.00014983,2]
[392802803,1761970238005,-1013.13,0.00014983,2]
[392802804,1761970238016,-474.15,0.00014983,2]
[392802805,1761970238026,-2285.491,0.00014984,2]
[392802806,1761970238036,-169.927,0.00014984,2]
[392802807,1761970238047,-205.07694133,0.00014986,2]
[392802808,1761970238058,-172.64702812,0.00014986,2]
[392802809,1761970238068,-288.49451484,0.00014986,2]
[392802810,1761970238078,-1327.0,0.00014986,2]
[392802811,1761970238088,-150.0,0.00014986,2]
[392802812,1761970238097,-8402.12774522,0.0001499,2]
[392802813,1761970238107,-202.55246803,0.0001499,2]
[392802814,1761970238117,-202.55246803,0.0001499,2]
[392802815,1761970238126,-202.55246803,0.0001499,2]
[392802816,1761970238136,-152.0,0.00014996,2]
[392802817,1761970238146,-152.0,0.00014996,2]
[392802818,1761970238155,-152.0,0.00014996,2]
[392802819,1761970238165,-151.0,0.00014997,2]
[392802820,1761970238175,-291.27921974,0.00014999,2]
[392802821,1761970238185,-1000.6278,0.00014999,2]
[392802822,1761970238195,-1000.0,0.00014999,2]
[392802823,1761970238205,-155.0,0.00014999,2]
[392802824,1761970238215,-1199.90207372,0.00014999,2]
[392802825,1761970238225,-500.0,0.00014999,2]
[392802826,1761970238235,-500.0,0.00014999,2]
[392802827,1761970238245,-500.0,0.00014999,2]
[392802828,1761970238255,-500.0,0.00014999,2]
[392802829,1761970238264,-150.0,0.00014999,2]
[392802830,1761970238274,-150.0,0.00014999,2]
[392802831,1761970238283,-150.0,0.00014999,2]
[392802832,1761970238292,-150.0,0.00014999,2]
[392802833,1761970238303,-158.47970691,0.00014999,2]
[392802834,1761970238313,-150.0,0.00014999,2]
[392802835,1761970238323,-150.0,0.00014999,2]
[392802836,1761970238332,-500.0,0.00014999,2]
[392802837,1761970238342,-500.0,0.00014999,2]
[392802838,1761970238352,-1004.87,0.00014999,2]
[392802839,1761970238361,-150.0,0.00014999,2]
[392802840,1761970238371,-150.0,0.00014999,2]
[392802841,1761970238381,-500.0,0.00014999,2]
[392802842,1761970238391,-263.28695476,0.00014999,2]
[392802843,1761970238401,-664.0,0.00014999,2]
[392802844,1761970238411,-500.0,0.00014999,2]
[392802845,1761970238420,-330.850433,0.00014999,2]
[392802846,1761970238430,-522.822877,0.00014999,2]
[392802847,1761970238440,-150.0,0.00014999,2]
[392802848,1761970238450,-2306.0,0.00015,2]
[392802849,1761970238459,-745578.20823935,0.00015,2]
[392802850,1761970238469,-2027.95723379,0.00015,2]
[392802851,1761970238479,-7894.68518592,0.00015,2]
[392802852,1761970238488,-3829617.383287,0.00015,2]
[392802853,1761970238500,-2553.79579323,0.00015,2]
[392802854,1761970238511,-10846.4700561,0.00015,2]
[392802855,1761970238522,-879.81984594,0.00015,2]
[392802856,1761970238533,-1090.6728788,0.00015,2]
[392802860,1761970240144,-485.643281,0.00014905,2]
[392802861,1761970240153,-1405086.32858205,0.00015,2]
[392802862,1761970240183,-150.0,0.00014999,2]
[392802863,1761970240193,-1646804.19694742,0.00015,2]
[392802864,1761970240202,-3458.6931066,0.00015,2]
[392802865,1761970240211,-168241.28350304,0.00015,2]
[392802866,1761970240221,-866.52028193,0.00015,2]
[392802867,1761970240230,-154.6494431,0.00015,2]
[392802868,1761970240239,-17901.4603027,0.00015,2]
[392802869,1761970240248,-200.0,0.00015,2]
[392802870,1761970240258,-152.0,0.00015,2]
[392802871,1761970240267,-350.99,0.00015,2]
[392802872,1761970240276,-153.7851321,0.00015,2]
[392802873,1761970240286,-36981.4717189,0.00015,2]
[392802875,1761970240296,-151.97599885,0.00015,2]
[392802876,1761970240308,-10323.1586099,0.00015,2]
[392802878,1761970240317,-150.0,0.00015,2]
[392802880,1761970240327,-178.677693,0.00015,2]
[392802881,1761970240338,-160.0,0.00015,2]
[392802883,1761970240349,-267.12456428,0.00015,2]
[392802884,1761970240358,-200.0,0.00015,2]
[392802885,1761970240369,-254.8313588,0.00015014,2]
[392802886,1761970240379,-328.59297746,0.00015014,2]
[392802887,1761970240389,-195.0,0.00015014,2]
[392802888,1761970240398,-195.0,0.00015014,2]
[392802889,1761970240408,-200.14835917,0.00015014,2]
[392802890,1761970240418,-195.0,0.00015014,2]
[392802891,1761970240427,-651.76,0.00015019,2]
[392802892,1761970240437,-150.0,0.00015027,2]
[392802893,1761970240446,-250.0,0.00015027,2]
[392802894,1761970240456,-195.0,0.00015027,2]
[392802895,1761970240466,-166.66,0.00015039,2]
[392802896,1761970240475,-250.0,0.0001509,2]
[392802897,1761970240485,-300.0,0.0001509,2]
[392802898,1761970240495,-283.42547398,0.0001509,2]
[392802899,1761970240504,-951.0,0.000151,2]
[392802900,1761970240514,-302.0,0.000151,2]
[392802901,1761970240524,-518.0,0.00015113,2]
[392802902,1761970240534,-199.1310218,0.00015118,2]
[392802903,1761970240543,-477.34778997,0.00015119,2]
[392802904,1761970240555,-367.0,0.00015121,2]
[392802905,1761970240565,-208.16794849,0.00015136,2]
[392802906,1761970240575,-150.0,0.00015136,2]
[392802907,1761970240585,-500.0,0.00015136,2]
[392802908,1761970240595,-500.0,0.00015136,2]
[392802909,1761970240605,-150.0,0.00015136,2]
[392802910,1761970240615,-150.0,0.00015136,2]
[392802911,1761970240624,-500.0,0.00015136,2]
[392802912,1761970240634,-664.0,0.00015136,2]
[392802913,1761970240645,-150.0,0.00015137,2]
[392802914,1761970240655,-200.0,0.0001515,2]
[392802915,1761970240664,-200.0,0.0001515,2]
[392802916,1761970240673,-518.0,0.00015161,2]
[392802917,1761970240683,-12124.30869189,0.00015188,2]
[392802918,1761970240692,-553.64373807,0.0001524,2]
[392802919,1761970240702,-255.0,0.0001526,2]
[392802920,1761970240712,-1187.0,0.00015272,2]
[392802921,1761970240722,-905.0,0.00015272,2]
[392802922,1761970240731,-2140.0,0.00015272,2]
[392802923,1761970240741,-6678.375,0.00015272,2]
[392802924,1761970240750,-559.0,0.00015272,2]
[392802925,1761970240759,-6468.0,0.00015272,2]
[392802926,1761970240769,-196.98458507,0.00015273,2]
[392802927,1761970240778,-500.0,0.00015273,2]
[392802928,1761970240787,-500.0,0.00015273,2]
[392802929,1761970240796,-199.17580313,0.00015273,2]
[392802930,1761970240807,-150.0,0.00015273,2]
[392802931,1761970240817,-500.0,0.00015273,2]
[392802932,1761970240826,-664.0,0.00015273,2]
[392802933,1761970240835,-1004.87,0.00015273,2]
[392802934,1761970240845,-150.0,0.00015274,2]
[392802935,1761970240854,-200.0,0.00015301,2]
[392802936,1761970240863,-200.0,0.00015301,2]
[392802937,1761970240872,-300.0,0.00015324,2]
[392802938,1761970240882,-372.0,0.00015338,2]
[392802939,1761970240891,-420.0,0.00015338,2]
[392802940,1761970240900,-518.0,0.0001538,2]
[392802941,1761970240909,-168.0,0.00015383,2]
[392802942,1761970240918,-226.0332895,0.00015408,2]
[392802943,1761970240927,-500.0,0.0001541,2]
[392802944,1761970240936,-500.0,0.0001541,2]
[392802945,1761970240945,-189.19034684,0.0001541,2]
[392802946,1761970240955,-500.0,0.0001541,2]
[392802947,1761970240964,-664.0,0.0001541,2]
[392802948,1761970240974,-156.90494757,0.00015411,2]
[392802949,1761970240983,-3101.0,0.00015444,2]
[392802950,1761970240993,-805.01,0.00015446,2]
[392802951,1761970241002,-200.0,0.00015455,2]
[392802952,1761970241012,-200.0,0.00015455,2]
[392802953,1761970241021,-166.66,0.00015505,2]
[392802954,1761970241031,-334.5472959,0.00015513,2]
[392802955,1761970241040,-257.91778498,0.00015513,2]
[392802956,1761970241050,-518.0,0.00015519,2]
[392802957,1761970241060,-512.80790255,0.00015521,2]
[392802958,1761970241070,-500.0,0.00015547,2]
[392802959,1761970241079,-500.0,0.00015547,2]
[392802960,1761970241089,-500.0,0.00015547,2]
[392802961,1761970241099,-664.0,0.00015547,2]
[392802962,1761970241108,-1004.87,0.00015547,2]
[392802963,1761970241117,-168.0,0.00015555,2]
[392802964,1761970241126,-367.0,0.00015598,2]
[392802965,1761970241136,-200.0,0.00015609,2]
[392802966,1761970241145,-478.28444749,0.00015684,2]
[392802967,1761970241154,-500.0,0.00015684,2]
[392802968,1761970241164,-500.0,0.00015684,2]
[392802969,1761970241173,-664.0,0.00015684,2]
[392802970,1761970241183,-644.12965803,0.00015696,7]
[392802971,1761970241192,-518.0,0.00015781,2]
[392802972,1761970241201,-574.12855637,0.00015788,2]
[392802973,1761970241210,-500.0,0.00015808,2]
[392802974,1761970241219,-518.0,0.00015816,2]
[392802975,1761970241229,-500.0,0.00015821,2]
[392802976,1761970241239,-500.0,0.00015821,2]
[392802977,1761970241249,-664.0,0.00015821,2]
[392802978,1761970241258,-1004.87,0.00015821,2]
[392802979,1761970241268,-1000.0,0.00015828,2]
[392802980,1761970241277,-163.14201833,0.00015849,2]
[392802981,1761970241288,-518.0,0.00015862,2]
[392802982,1761970241298,-163.51,0.00015943,2]
[392802983,1761970241310,-380.29171827,0.00015958,2]
[392802984,1761970241320,-500.0,0.00015958,2]
[392802985,1761970241329,-664.0,0.00015958,2]
[392802986,1761970241340,-166.66,0.0001597,2]
[392802987,1761970241350,-500.0,0.00016095,2]
[392802988,1761970241359,-664.0,0.00016095,2]
[392802989,1761970241368,-1004.87,0.00016095,2]
[392802990,1761970241377,-3734.64,0.00016116,2]
[392802991,1761970241387,-500.0,0.00016232,2]
[392802992,1761970241397,-664.0,0.00016232,2]
[392802993,1761970241406,-510.47701783,0.000163,2]
[392802994,1761970241415,-595.37131296,0.00016336,2]
[392802995,1761970241425,-252.60559839,0.00016369,2]
[392802996,1761970241434,-500.0,0.00016369,2]
[392802997,1761970241443,-664.0,0.00016369,2]
[392802998,1761970241453,-1004.87,0.00016369,2]
[392802999,1761970241463,-200.0,0.0001638,2]
[392803000,1761970241472,-200.0,0.0001638,2]
[392803001,1761970241481,-150.0,0.0001638,2]
[392803002,1761970241491,-208.0,0.0001638,2]
[392803003,1761970241500,-250.0,0.0001638,2]
[392803004,1761970241509,-186.86,0.0001638,2]
[392803005,1761970241518,-214.569,0.0001638,2]
[392803006,1761970241528,-151.743,0.0001638,2]
[392803007,1761970241538,-250.0,0.0001638,2]
[392803008,1761970241547,-257.868,0.0001638,2]
[392803009,1761970241558,-188.74,0.0001638,2]
[392803010,1761970241568,-161.981,0.0001638,2]
[392803011,1761970241577,-209.699,0.0001638,2]
[392803012,1761970241587,-250.0,0.0001638,2]
[392803013,1761970241596,-218.173,0.0001638,2]
[392803014,1761970241605,-820.0,0.0001638,2]
[392803015,1761970241615,-3420.0,0.0001638,2]
[392803016,1761970241624,-576.185,0.0001638,2]
[392803017,1761970241635,-607.0,0.0001638,2]
[392803018,1761970241648,-1594.0,0.0001638,2]
[392803019,1761970241658,-1314.0,0.0001638,2]
[392803020,1761970241667,-819.0,0.0001638,2]
[392803021,1761970241676,-1272.0,0.0001638,2]
[392803022,1761970241687,-166.66,0.00016436,2]
[392803023,1761970241697,-257.63661121,0.00016438,2]
[392803024,1761970241706,-216.82923528,0.00016438,2]
[392803025,1761970241716,-500.0,0.00016438,2]
[392803026,1761970241725,-433.0,0.00016462,2]
[392803027,1761970241735,-155.0,0.00016499,2]
[392803028,1761970241744,-500.0,0.00016506,2]
[392803029,1761970241754,-664.0,0.00016506,2]
[392803030,1761970241763,-153.42491541,0.00016533,2]
[392803031,1761970241773,-500.0,0.00016643,2]
[392803032,1761970241796,-664.0,0.00016643,2]
[392803033,1761970241810,-1004.87,0.00016643,2]
[392803034,1761970241820,-10323.1586099,0.0001667,2]
[392803035,1761970241830,-1204.11,0.00016673,2]
[392803036,1761970241839,-300.0,0.00016694,2]
[392803037,1761970241849,-266.24048925,0.00016698,5]
[392803038,1761970241859,-165.46,0.00016712,2]
[392803039,1761970241869,-500.0,0.0001678,2]
[392803040,1761970241878,-664.0,0.0001678,2]
[392803041,1761970241888,-587.0,0.00016803,2]
[392803042,1761970241898,-800.0,0.00016808,2]
[392803043,1761970241908,-1300.0,0.00016808,2]
[392803044,1761970241918,-3000.0,0.00016808,2]
[392803045,1761970241927,-1092.0,0.00016821,2]
[392803046,1761970241937,-177.0,0.0001687,2]
[392803047,1761970241948,-346.92554585,0.00016882,2]
[392803048,1761970241957,-267.46074303,0.00016882,2]
[392803049,1761970241967,-670.58624095,0.00016883,2]
[392803050,1761970241977,-194.72792766,0.00016883,2]
[392803051,1761970241987,-617.40005154,0.00016884,2]
[392803052,1761970241997,-500.0,0.00016917,2]
[392803053,1761970242007,-664.0,0.00016917,2]
[392803054,1761970242296,-1004.87,0.00016917,2]
[392803055,1761970242308,-504.0,0.00016932,2]
[392803056,1761970242317,-250.0,0.00017,2]
[392803057,1761970242327,-163.51,0.00017006,2]
[392803058,1761970242336,-500.0,0.00017054,2]
[392803059,1761970242346,-664.0,0.00017054,2]
[392803060,1761970242355,-150.0,0.00017104,5]
[392803061,1761970242365,-150.09957734,0.00017104,5]
[392803062,1761970242375,-805.01,0.00017162,2]
[392803063,1761970242384,-649.05155067,0.00017191,2]
[392803064,1761970242394,-664.0,0.00017191,2]
[392803065,1761970242404,-1004.87,0.00017191,2]
[392803066,1761970242414,-300.0,0.00017225,2]
[392803067,1761970242430,-300.0,0.00017225,2]
[392803068,1761970242440,-151.0,0.00017226,2]
[392803069,1761970242451,-158.841108,0.00017226,2]
[392803070,1761970242461,-153.696257,0.00017226,2]
[392803071,1761970242471,-154.293385,0.00017226,2]
[392803072,1761970242480,-153.758113,0.00017226,2]
[392803073,1761970242490,-151.0,0.00017226,2]
[392803074,1761970242500,-161.149811,0.00017226,2]
[392803075,1761970242510,-278.980558,0.00017226,2]
[392803076,1761970242520,-163.548547,0.00017226,2]
[392803077,1761970242530,-151.0,0.00017226,2]
[392803078,1761970242539,-153.822368,0.00017226,2]
[392803079,1761970242549,-153.98251,0.00017226,2]
[392803080,1761970242562,-154.872099,0.00017226,2]
[392803081,1761970242572,-153.551473,0.00017226,2]
[392803082,1761970242582,-153.449992,0.00017226,2]
[392803084,1761970242592,-153.025801,0.00017226,2]
[392803085,1761970242602,-151.0,0.00017226,2]
[392803086,1761970242611,-151.0,0.00017226,2]
[392803087,1761970242621,-151.0,0.00017226,2]
[392803088,1761970242631,-250.68345,0.00017226,2]
[392803089,1761970242644,-151.0,0.00017226,2]
[392803090,1761970242655,-250.68345,0.00017226,2]
[392803091,1761970242664,-152.823289,0.00017226,2]
[392803092,1761970242674,-295.978956,0.00017226,2]
[392803093,1761970242683,-250.68345,0.00017226,2]
[392803094,1761970242694,-250.68345,0.00017226,2]
[392803095,1761970242703,-151.035465,0.00017226,2]
[392803096,1761970242712,-152.714835,0.00017226,2]
[392803097,1761970242722,-153.224692,0.00017226,2]
[392803098,1761970242731,-157.56303,0.00017226,2]